{"text_format":"1","workbook":"xlsx","n_sheets":1,"sheets":["Sheet1"],"not_rendered":{"charts":0,"images":8,"macros":1,"external_links":0,"defined_names":3,"comments":0,"pivot_tables":0},"unopened":[],"bounds":{"document_bytes":16777216,"sheet_cells":100000,"rows_first":2000,"rows_last":500,"rows_between":2000,"halvings":0,"cell_chars":16384,"cell_head_chars":4096},"cells_cut":0,"cells_raw":0,"read":"whole","date_system":"1900"}

{"sheet":"Sheet1","index":0,"n_rows":61,"n_cols":105,"rows_kept":61,"cut":false,"hidden":false,"merged":[[37,0,37,2],[40,0,40,2],[35,0,35,2],[28,0,28,8],[33,0,33,2],[29,0,29,2],[34,0,34,2],[30,0,31,2],[32,0,32,2],[0,7,0,8],[1,7,1,8],[18,6,18,7],[20,6,20,7],[21,6,21,7],[7,6,7,8],[5,0,6,8],[19,6,19,7],[9,4,9,8],[10,4,11,8],[12,5,12,8],[13,5,16,8],[18,0,18,4],[19,0,19,4],[20,0,20,4],[21,0,21,4],[26,6,26,7],[27,6,27,7],[40,6,40,8],[29,6,29,8],[32,6,32,8],[33,6,33,8],[34,6,34,8],[37,6,37,8],[35,6,35,8],[36,6,36,8],[24,6,24,7],[22,6,22,7],[23,6,23,7],[22,0,22,4],[23,0,23,4],[24,0,24,4],[13,2,16,2],[13,3,16,4],[16,0,16,1],[15,0,15,1],[14,0,14,1],[13,0,13,1],[2,0,2,8],[38,6,39,8],[41,6,42,8],[41,3,42,5],[30,6,31,8],[41,0,42,2],[33,3,33,5],[40,3,40,5],[8,0,8,8],[17,0,17,8],[10,3,11,3],[10,2,11,2],[10,0,11,0],[10,1,11,1],[12,0,12,1],[12,3,12,4],[25,0,25,4],[26,0,26,4],[27,0,27,4],[44,4,44,5],[29,3,29,5],[30,3,31,5],[37,3,37,5],[38,3,39,5],[32,3,32,5],[35,3,35,5],[34,3,34,5],[36,3,36,5],[43,0,43,8],[38,0,39,2],[36,0,36,2],[25,6,25,7],[45,0,47,0],[45,1,47,1],[45,2,47,2],[45,3,47,3],[48,0,51,0],[48,4,51,5],[48,3,51,3],[48,2,51,2],[48,1,51,1],[45,7,47,7],[45,4,47,5],[45,6,47,6],[46,8,47,8],[48,8,49,8],[50,8,51,8],[48,7,51,7],[48,6,51,6]]}
["TODAY'S DATE",null,null,null,null,null,null,"PURCHASE REQUISITION NO.",null,null,null,null,null,null,null,null,null,null,null,null,null,null,null,null,null,null,null,null,null,null,null,null,null,null,null,null,null,null,null,null,null,null,null,null,null,null,null,null,null,null,null,null,null,null,null,null,null,null,null,null,null,null,null,null,null,null,null,null,null,{"$f":"NOW()","v":45324.435928356485},{"$f":"HOUR(BR1)","v":10}]
[{"$f":"TODAY()","v":"2024-02-02"},null,null,null,null,null,null,{"$f":"U6","v":1004662.2259623957},null,null,null,null,null,null,null,null,null,null,null,null,null,null,null,null,null,null,null,null,null,null,null,null,null,null,null,null,null,null,null,null,null,null,null,null,null,null,null,null,null,null,null,null,null,null,null,null,null,null,null,null,null,null,null,null,null,null,null,null,null,{"$f":"NOW()","v":45324.435928356485},{"$f":"MINUTE(BR2)","v":27}]
[null,null,null,null,null,null,null,null,null,null,null,null,null,null,null,null,null,null,null,null,1000000,null,null,null,null,null,null,null,null,null,null,null,null,null,null,null,null,null,null,null,null,null,null,null,null,null,null,null,null,null,null,null,null,null,null,null,null,null,null,null,null,null,null,null,null,null,null,null,null,null,{"$f":"SUM(BS1:BS2)","v":37}]
[]
[null,null,null,null,null,null,null,null,null,null,null,null,null,null,null,null,null,null,null,null,{"$f":"A2+A11+B11+D11+U29+V29+W29+X21+X22+X23+X24+X25+X26+X27+X28+AA20+AA21+AA22+AA23+AA24+AA25+AA26+AA27+AA28+W53+X53+AA53+AA56+Y21+Y22+Y23+Y24+Y25+Y26+Y27+Y28++Z21+Z22+Z23+Z24+Z25+Z26+Z27+Z28+AB20+AB21+AB22+AB23+AB24+AB25+AB26+AB27+AB28+X34+X35+X36+X37+X39+AA34+AA35+AA36+AA37+AA39+AD34+AD35+AD36+AD37+AA31+AD31+AH12+AO55+AP55+AQ55+AR55+AS55+AU55+AX55+BF29+BG29+BH29+BI29+X42+AA42+AD42+AO12:AP12+AR61+BN12+BS1+BS2+BS3+BS5+BV11-BW12+W5","v":4662.2259623957143},156355.44556239573,{"$f":"TODAY()","v":45324},null,null,null,null,null,null,null,null,null,null,null,null,null,null,null,null,null,null,null,null,null,null,null,null,null,null,null,null,null,null,null,null,null,null,null,null,null,null,null,null,null,null,null,null,null,null,null,{"$f":"STDEV(BS1:BS3)","v":13.650396819628849}]
["Procurement Services",null,null,null,null,null,null,null,null,null,null,null,null,null,null,null,null,null,null,null,{"$f":"SUM(U3:U5)","v":1004662.2259623957},null,null,null,null,null,null,null,null,null,null,null,null,null,null,null,null,null,null,null,null,null,null,null,null,null,null,null,null,null,null,null,null,null,null,null,null,null,null,null,null,null,null,null,null,null,null,null,null,null,null,null,null,null,null,null,null,null,null,null,null,null,null,null,null,null,null,null,null,null,null,null,null,null,null,null,null,null,31887,32215,32777,38250,38617,39391]
[null,null,null,null,null,null,null,null,null,null,null,null,null,null,null,null,null,null,null,null,null,null,null,null,null,null,null,null,null,null,null,null,null,null,null,null,null,null,null,null,null,null,null,null,null,null,null,null,null,null,null,null,null,null,null,null,null,null,null,null,null,null,null,null,null,null,null,null,null,null,null,null,null,null,null,null,null,null,null,null,null,null,null,null,null,null,null,null,null,null,null,null,null,null,null,null,null,null,32173,32598,38107,38429,39388,{"$f":"TODAY()-1","v":45323}]
["Items in RED are required",null,null,null,null,null,"purchasing@albany.edu",null,null,null,null,null,null,null,null,null,null,null,null,null,null,null,null,null,null,null,null,null,null,null,null,null,null,null,null,null,null,null,null,null,null,null,null,null,null,null,null,null,null,null,null,null,null,null,null,null,null,null,null,null,null,null,null,null,null,null,null,null,null,null,null,null,null,null,null,null,null,null,null,null,null,null,null,null,null,null,null,null,null,null,null,null,null,null,null,null,null,null,{"$f":"CU7-CU6","v":286},383,5330,179,771,5932,{"$f":"SUM(CU8:CZ8)","v":12881}]
["ENCUMBRANCE",null,null,null,null,null,null,null,null,null,"Populate Fiscal Year based on Fiscal Year, June 1st",null,null,null,null,null,null,null,null,null,null,null,null,null,null,null,null,null,null,null,null,null,null,{"$f":"NOW()","v":45324.435928356485}]
["ACCOUNT","SUB ACCOUNT","FISCAL YEAR","AMOUNT","IDENTIFY IF APPLICABLE",null,null,null,null,null,null,null,null,null,null,null,null,null,null,null,null,null,null,null,null,null,null,null,null,null,null,0.47916666666666669]
[null,null,{"$f":"IF(L15=2023,\"2023-2024\", IF(L15=2024,\"2024-2025\", IF(L15=2025,\"2025-2026\", IF(L15=2026,\"2026-2027\", IF(L15=2027,\"2027-2028\", IF(L15=2028,\"2028-2029\", IF(L15=2029,\"2029-2030\")))))))","v":"2023-2024"},{"$f":"SUM(I20:I28)","v":0},null,null,null,null,null,null,null,7,"month fiscal year starts",null,null,null,null,null,null,null,null,null,null,null,null,null,null,null,null,null,null,{"$f":"AH9-AF10","v":45323.95676168982},null,null,null,null,null,null,null,{"$f":"TODAY()*3.3479","v":151740.21960000001},null,null,null,null,null,null,null,null,null,null,null,null,null,null,null,null,null,null,null,null,null,null,null,null,null,{"$f":"A11","v":0},null,null,null,null,null,null,null,{"$f":"BT13-A2","v":-43390},27841]
[null,null,null,null,null,null,null,null,null,null,null,null,null,null,null,null,null,null,null,null,null,null,null,null,null,null,null,null,null,null,null,null,null,{"$f":"IF(AF11<0,12346,AF11)","v":45323.95676168982},null,null,null,null,null,{"$f":"A11","v":0},{"$f":"AN12-AN11","v":-151740.21960000001},{"$f":"IF(AO12>1,54,-47)","v":-47},null,null,null,null,null,null,null,null,null,null,null,null,null,null,null,null,null,null,null,null,null,null,null,{"$f":"SQRT(BN11)","v":0},null,null,null,null,null,null,null,null,{"$f":"BW11-A2","v":-17483}]
["DELIVER ITEMS TO: (NAME/BLDG/RM/DEPT/EMAIL)",null,"DEPT PHONE","PRINTED NAME OF AUTHORIZED ACCOUNT SIGNATURE",null,"AUTHORIZED ACCOUNT SIGNATURE (REQUIRED)",null,null,null,null,null,{"$f":"TODAY()","v":"2024-02-02"},"todays date","today()","Formula for C11: IF(L15=2023,\"2023-2024\", IF(L15=2024,\"2024-2025\", IF(L15=2025,\"2025-2026\", IF(L15=2026,\"2026-2027\", IF(L15=2027,\"2027-2028\", IF(L15=2028,\"2028-2029\", IF(L15=2029,\"2029-2030\")))))))",null,null,null,null,null,null,null,null,null,null,null,null,null,null,null,null,null,null,null,null,null,null,null,null,null,null,null,null,null,null,null,null,null,null,null,null,null,null,null,null,null,null,null,null,null,null,null,null,null,null,null,null,null,null,null,null,"1905-04-17"]
[]
[null,null,null,null,null,null,null,null,null,null,null,{"$f":"YEAR(L13)-1+(MONTH(L13)>=L11)","v":2023},"fiscal year"]
[]
[]
["ITEM INFORMATION                   ",null,null,null,null,null,null,null,null,null,null,null,null,null,null,null,null,null,null,null,null,null,null,null,null,null,null,null,null,null,"2014/2015"]
["DESCRIPTION",null,null,null,null,"QUANTITY","UNIT PRICE",null,"UNIT TOTAL",null,null,null,null,null,null,null,null,null,null,null,null,null,null,null,null,null,null,null,null,null,"2010/2011"]
[null,null,null,null,null,null,null,null,{"$f":"F20*G20","v":0},null,null,null,null,null,null,null,null,null,null,null,{"$f":"E20","v":0},{"$f":"F20","v":0},{"$f":"I20","v":0},{"$f":"IF(LEN(TRIM(A20))>0,LEN(TRIM(A20)))","v":false},{"$f":"IF(LEN(TRIM(E20))>0,LEN(TRIM(E20)))","v":false},{"$f":"IF(LEN(TRIM(F20))>0,LEN(TRIM(F20)))","v":false},{"$f":"IF(LEN(TRIM(G20))>0,LEN(TRIM(G20)))","v":false},{"$f":"IF(LEN(TRIM(I20))>0,LEN(TRIM(I20)))","v":1},null,null,"2009/2010",null,null,null,null,null,null,null,null,null,{"$f":"IF(LEN(TRIM(U20))>0,LEN(TRIM(U20)))","v":1},{"$f":"IF(LEN(TRIM(V20))>0,LEN(TRIM(V20)))","v":1},{"$f":"IF(LEN(TRIM(W20))>0,LEN(TRIM(W20)))","v":1},{"$f":"IF(LEN(TRIM(X20))>0,LEN(TRIM(X20)))","v":5},{"$f":"IF(LEN(TRIM(Y20))>0,LEN(TRIM(Y20)))","v":5},5,5,null,null,null,null,{"$f":"IF(X20,\"jets win super bowl\",\"vikings win super bowl\")","v":"vikings win super bowl"},{"$f":"IF(Y20,\"blazzing saddles\",\"young frankenstein\")","v":"young frankenstein"},{"$f":"IF(Z20,\"jets win super bowl\",\"vikings win super bowl\")","v":"vikings win super bowl"},{"$f":"IF(AA20,\"blazzing saddles\",\"young frankenstein\")","v":"young frankenstein"},null,null,{"$f":"IF(LEN(TRIM(AZ20))>0,LEN(TRIM(AZ20)))","v":22},{"$f":"IF(LEN(TRIM(BA20))>0,LEN(TRIM(BA20)))","v":18},{"$f":"IF(LEN(TRIM(BB20))>0,LEN(TRIM(BB20)))","v":22},{"$f":"IF(LEN(TRIM(BC20))>0,LEN(TRIM(BC20)))","v":18}]
[null,null,null,null,null,null,null,null,0,null,null,null,null,null,null,null,null,null,null,null,{"$f":"E21","v":0},{"$f":"F21","v":0},{"$f":"I21","v":0},{"$f":"IF(LEN(TRIM(A21))>0,LEN(TRIM(A21)))","v":false},{"$f":"IF(LEN(TRIM(E21))>0,LEN(TRIM(E21)))","v":false},{"$f":"IF(LEN(TRIM(F21))>0,LEN(TRIM(F21)))","v":false},{"$f":"IF(LEN(TRIM(G21))>0,LEN(TRIM(G21)))","v":false},{"$f":"IF(LEN(TRIM(I21))>0,LEN(TRIM(I21)))","v":1},null,null,"2008/2009",null,null,null,null,null,null,null,null,null,{"$f":"IF(LEN(TRIM(U21))>0,LEN(TRIM(U21)))","v":1},1,1,5,5,5,5,null,null,null,null,{"$f":"IF(X21,\"jets win super bowl\",\"vikings win super bowl\")","v":"vikings win super bowl"},{"$f":"IF(Y21,\"blazzing saddles\",\"young frankenstein\")","v":"young frankenstein"},{"$f":"IF(Z21,\"jets win super bowl\",\"vikings win super bowl\")","v":"vikings win super bowl"},{"$f":"IF(AA21,\"blazzing saddles\",\"young frankenstein\")","v":"young frankenstein"},null,null,{"$f":"IF(LEN(TRIM(AZ21))>0,LEN(TRIM(AZ21)))","v":22},{"$f":"IF(LEN(TRIM(BA21))>0,LEN(TRIM(BA21)))","v":18},{"$f":"IF(LEN(TRIM(BB21))>0,LEN(TRIM(BB21)))","v":22},{"$f":"IF(LEN(TRIM(BC21))>0,LEN(TRIM(BC21)))","v":18}]
[null,null,null,null,null,null,null,null,0,null,null,null,null,null,null,null,null,null,null,null,0,0,0,false,false,false,false,1,null,null,"2007/2008",null,null,null,null,null,null,null,null,null,1,1,1,5,5,5,5,null,null,null,null,"vikings win super bowl","young frankenstein","vikings win super bowl","young frankenstein",null,null,22,18,22,18]
[null,null,null,null,null,null,null,null,0,null,null,null,null,null,null,null,null,null,null,null,0,0,0,false,false,false,false,1,null,null,null,null,null,null,null,null,null,null,null,null,1,1,1,5,5,5,5,null,null,null,null,"vikings win super bowl","young frankenstein","vikings win super bowl","young frankenstein",null,null,22,18,22,18]
[null,null,null,null,null,null,null,null,0,null,null,null,null,null,null,null,null,null,null,null,0,0,0,false,false,false,false,1,null,null,null,null,null,null,null,null,null,null,null,null,1,1,1,5,5,5,5,null,null,null,null,"vikings win super bowl","young frankenstein","vikings win super bowl","young frankenstein",null,null,22,18,22,18]
[null,null,null,null,null,null,null,null,0,null,null,null,null,null,null,null,null,null,null,null,0,0,0,false,false,false,false,1,null,null,null,null,null,null,null,null,null,null,null,null,1,1,1,5,5,5,5,null,null,null,null,"vikings win super bowl","young frankenstein","vikings win super bowl","young frankenstein",null,null,22,18,22,18]
[null,null,null,null,null,null,null,null,0,null,null,null,null,null,null,null,null,null,null,null,0,0,0,false,false,false,false,1,null,null,null,null,null,null,null,null,null,null,null,null,1,1,1,5,5,5,5,null,null,null,null,"vikings win super bowl","young frankenstein","vikings win super bowl","young frankenstein",null,null,22,18,22,18]
[null,null,null,null,null,null,null,null,0,null,null,null,null,null,null,null,null,null,null,null,0,0,0,false,false,false,false,1,null,null,null,null,null,null,null,null,null,null,null,null,1,1,1,5,5,5,5,null,null,null,null,"vikings win super bowl","young frankenstein","vikings win super bowl","young frankenstein",null,null,22,18,22,18]
[null,null,null,null,null,null,null,null,0,null,null,null,null,null,null,null,null,null,null,null,0,0,0,false,false,false,false,1,null,null,null,null,null,null,null,null,null,null,null,null,1,1,1,5,5,5,5,null,null,null,null,"vikings win super bowl","young frankenstein","vikings win super bowl","young frankenstein",null,null,22,18,22,18]
["VENDOR INFORMATION",null,null,null,null,null,null,null,null,null,null,null,null,null,null,null,null,null,null,null,{"$f":"AVERAGE(U20:U28)","v":0},{"$f":"AVERAGE(V20:V28)","v":0},{"$f":"AVERAGE(W20:W28)","v":0},null,null,null,null,null,null,null,null,null,null,null,null,null,null,null,null,null,1,1,1,null,null,null,null,null,null,null,null,null,null,null,null,null,null,{"$f":"SUM(BF20:BF28)","v":198},{"$f":"SUM(BG20:BG28)","v":162},{"$f":"SUM(BH20:BH28)","v":198},{"$f":"SUM(BI20:BI28)","v":162}]
["FEDERAL ID NO. or NYS SFS NO.",null,null,"FEDERAL ID NO. or NYS SFS NO.",null,null,"FEDERAL ID NO. or NYS SFS NO."]
[null,null,null,null,null,null,null,null,null,null,null,null,null,null,null,null,null,null,null,null,null,null,null,{"$f":"IF(LEN(TRIM(A31))>0,LEN(TRIM(A31)))","v":false},null,null,{"$f":"IF(LEN(TRIM(D31))>0,LEN(TRIM(D31)))","v":false},null,null,{"$f":"IF(LEN(TRIM(G31))>0,LEN(TRIM(G31)))","v":false},null,null,null,null,null,null,null,null,null,null,null,null,null,{"$f":"IF(LEN(TRIM(X31))>0,LEN(TRIM(X31)))","v":5},null,null,{"$f":"IF(LEN(TRIM(AA31))>0,LEN(TRIM(AA31)))","v":5},null,null,{"$f":"IF(LEN(TRIM(AD31))>0,LEN(TRIM(AD31)))","v":5}]
[]
["NAME AND ADDRESS",null,null,"NAME AND ADDRESS",null,null,"NAME AND ADDRESS"]
[null,null,null,null,null,null,null,null,null,null,null,null,null,null,null,null,null,null,null,null,null,null,null,{"$f":"IF(LEN(TRIM(A34))>0,LEN(TRIM(A34)))","v":false},null,null,{"$f":"IF(LEN(TRIM(D34))>0,LEN(TRIM(D34)))","v":false},null,null,{"$f":"IF(LEN(TRIM(G34))>0,LEN(TRIM(G34)))","v":false},null,null,null,null,null,null,null,null,null,null,null,null,null,{"$f":"IF(LEN(TRIM(X34))>0,LEN(TRIM(X34)))","v":5},null,null,{"$f":"IF(LEN(TRIM(AA34))>0,LEN(TRIM(AA34)))","v":5},null,null,{"$f":"IF(LEN(TRIM(AD34))>0,LEN(TRIM(AD34)))","v":5}]
[null,null,null,null,null,null,null,null,null,null,null,null,null,null,null,null,null,null,null,null,null,null,null,{"$f":"IF(LEN(TRIM(A35))>0,LEN(TRIM(A35)))","v":false},null,null,{"$f":"IF(LEN(TRIM(D35))>0,LEN(TRIM(D35)))","v":false},null,null,{"$f":"IF(LEN(TRIM(G35))>0,LEN(TRIM(G35)))","v":false},null,null,null,null,null,null,null,null,null,null,null,null,null,{"$f":"IF(LEN(TRIM(X35))>0,LEN(TRIM(X35)))","v":5},null,null,{"$f":"IF(LEN(TRIM(AA35))>0,LEN(TRIM(AA35)))","v":5},null,null,{"$f":"IF(LEN(TRIM(AD35))>0,LEN(TRIM(AD35)))","v":5}]
[null,null,null,null,null,null,null,null,null,null,null,null,null,null,null,null,null,null,null,null,null,null,null,{"$f":"IF(LEN(TRIM(A36))>0,LEN(TRIM(A36)))","v":false},null,null,{"$f":"IF(LEN(TRIM(D36))>0,LEN(TRIM(D36)))","v":false},null,null,{"$f":"IF(LEN(TRIM(G36))>0,LEN(TRIM(G36)))","v":false},null,null,null,null,null,null,null,null,null,null,null,null,null,{"$f":"IF(LEN(TRIM(X36))>0,LEN(TRIM(X36)))","v":5},null,null,{"$f":"IF(LEN(TRIM(AA36))>0,LEN(TRIM(AA36)))","v":5},null,null,{"$f":"IF(LEN(TRIM(AD36))>0,LEN(TRIM(AD36)))","v":5}]
[null,null,null,null,null,null,null,null,null,null,null,null,null,null,null,null,null,null,null,null,null,null,null,{"$f":"IF(LEN(TRIM(A37))>0,LEN(TRIM(A37)))","v":false},null,null,{"$f":"IF(LEN(TRIM(D37))>0,LEN(TRIM(D37)))","v":false},null,null,{"$f":"IF(LEN(TRIM(G37))>0,LEN(TRIM(G37)))","v":false},null,null,null,null,null,null,null,null,null,null,null,null,null,{"$f":"IF(LEN(TRIM(X37))>0,LEN(TRIM(X37)))","v":5},null,null,{"$f":"IF(LEN(TRIM(AA37))>0,LEN(TRIM(AA37)))","v":5},null,null,{"$f":"IF(LEN(TRIM(AD37))>0,LEN(TRIM(AD37)))","v":5}]
["PHONE",null,null,"PHONE",null,null,"PHONE"]
[null,null,null,null,null,null,null,null,null,null,null,null,null,null,null,null,null,null,null,null,null,null,null,{"$f":"IF(LEN(TRIM(A39))>0,LEN(TRIM(A39)))","v":false},null,null,{"$f":"IF(LEN(TRIM(D39))>0,LEN(TRIM(D39)))","v":false},null,null,{"$f":"IF(LEN(TRIM(G39))>0,LEN(TRIM(G39)))","v":false},null,null,null,null,null,null,null,null,null,null,null,null,null,{"$f":"IF(LEN(TRIM(X39))>0,LEN(TRIM(X39)))","v":5},null,null,{"$f":"IF(LEN(TRIM(AA39))>0,LEN(TRIM(AA39)))","v":5},null,null,{"$f":"IF(LEN(TRIM(AD39))>0,LEN(TRIM(AD39)))","v":5}]
[]
["E-MAIL",null,null,"E-MAIL",null,null,"E-MAIL"]
[null,null,null,null,null,null,null,null,null,null,null,null,null,null,null,null,null,null,null,null,null,null,null,{"$f":"IF(LEN(TRIM(A42))>0,LEN(TRIM(A42)))","v":false},null,null,{"$f":"IF(LEN(TRIM(D42))>0,LEN(TRIM(D42)))","v":false},null,null,{"$f":"IF(LEN(TRIM(G42))>0,LEN(TRIM(G42)))","v":false}]
[]
["TO BE COMPLETED BY THE OFFICE OF PROCUREMENT SERVICES"]
["UNSPSC CODE:","CHAR OBJECT:","COMMODITY CODE:","OGS CONTRACT:","PSP CODE:",null,"CONTRACTOR TYPE:",null,"PURCHASE ORDER NO.:"]
["UNSPSC CODE:","CHAR OBJECT:","COMMODITY CODE:","SOLE SOURCE:","WBE:",null,"RECYCLE CODE:",null,"DISCRETIONARY:"]
[null,null,null,null,null,null,null,null,"NON DISCRETIONARY:"]
[]
["UNSPSC CODE:","CHAR OBJECT:","COMMODITY CODE:","SINGLE SOURCE:","MWBE:",null,"OC NO LINE 8:","BUYER:","FED PROD CODE:"]
[]
[null,null,null,null,null,null,null,null,"REMANUFACTURED CODE:"]
[]
[{"$f":"NOW()","v":"2024-02-02T10:27:44.210"},"1. THIS DOCUMENT IS FORMULA DRIVEN PLEASE COMPLETE ON LINE. DO NOT REUSE.",null,null,null,null,null,null,{"$f":"NOW()","v":"2024-02-02T10:27:44.210"},null,null,null,null,null,null,null,null,null,null,null,null,null,{"$f":"IF(LEN(TRIM(A53))>0,LEN(TRIM(A53)))","v":16},{"$f":"SQRT(W53)","v":4},null,null,{"$f":"NOW()","v":45324.435928356485},null,null,null,null,null,null,null,null,null,null,null,null,null,null,null,{"$f":"IF(LEN(TRIM(W53))>0,LEN(TRIM(W53)))","v":2},{"$f":"IF(LEN(TRIM(X53))>0,LEN(TRIM(X53)))","v":1},null,null,{"$f":"IF(LEN(TRIM(AA53))>0,LEN(TRIM(AA53)))","v":16}]
[null,"2.  DO NOT SAVE, MAKE COPIES, REUSE OR WHITE OUT INFORMATION."]
[null,null,null,null,null,null,null,null,null,null,null,null,null,null,null,null,null,null,null,null,null,null,null,null,null,null,null,null,null,null,null,null,null,null,null,null,null,null,null,null,{"$f":"SUM(AO20:AO54)","v":10},10,12,76,45,45,91,null,null,{"$f":"SUM(AX20:AX54)","v":30}]
[null,null,null,null,null,null,null,null,null,null,null,null,null,null,null,null,null,null,null,null,null,null,null,null,null,null,{"$f":"POWER(AA53,0.33)","v":34.402475529787594}]
[]
[]
[]
[null,null,null,null,null,null,null,null,null,null,null,null,null,null,null,null,null,null,null,null,null,null,null,null,null,null,null,null,null,null,null,null,null,null,null,null,null,null,null,null,null,{"$f":"TODAY()*1.174","v":53210.375999999997}]
[null,null,null,null,null,null,null,null,null,null,null,null,null,null,null,null,null,null,null,null,null,null,null,null,null,null,null,null,null,null,null,null,null,null,null,null,null,null,null,null,null,{"$f":"D11","v":0},{"$f":"AP61-AP60","v":-53210.375999999997},{"$f":"IF(AQ61>1,174,-132)","v":-132}]